fUSD/lending_fUSD_20241202
["ID","MTS","AMOUNT","RATE_DAILY","PERIOD"]
[343985387,1733169607529,-503.19,0.00025821,120]
[343985388,1733169607581,-621.14,0.00025821,120]
[343985389,1733169607631,-1663.95,0.00025821,120]
[343985390,1733169607683,-500.0,0.00025821,120]
[343985391,1733169607731,-1118.58,0.00025821,120]
[343985392,1733169607779,-745.04,0.00025821,120]
[343985393,1733169607825,-4289.07,0.00025821,120]
[343985394,1733169607873,-500.0,0.00025821,120]
[343985395,1733169607920,-500.0,0.00025821,120]
[343985396,1733169607969,-4507.19,0.00025821,120]
[343985397,1733169608017,-1284.07,0.00025821,120]
[343985398,1733169608065,-890.64,0.00025821,120]
[343985399,1733169608114,-917.02,0.00025821,120]
[343985400,1733169608164,-2525.37,0.00025821,120]
[343985401,1733169608432,-500.0,0.00025821,120]
[343985402,1733169608502,-580.95,0.00025821,120]
[343985403,1733169608552,-2534.0,0.00025821,120]
[343985404,1733169608608,-6207.23,0.00025821,120]
[343985405,1733169608657,-500.0,0.00025821,120]
[343985406,1733169608709,-500.0,0.00025821,120]
[343985407,1733169608758,-500.0,0.00025821,120]
[343985408,1733169608806,-1114.51,0.00025821,60]
[343985409,1733169608857,-2448.92,0.00025821,120]
[343985410,1733169608909,-513.46,0.00025821,120]
[343985411,1733169608958,-500.0,0.00025821,120]
[343985412,1733169609007,-1950.33,0.00025821,120]
[343985413,1733169609057,-3054.87,0.00025821,120]
[343985414,1733169609107,-870.88,0.00025821,120]
[343985415,1733169609160,-500.0,0.00025821,120]
[343985416,1733169609211,-1470.42,0.00025821,120]
[343985417,1733169609263,-2228.68,0.00025821,120]
[343985418,1733169609314,-923.08,0.00025821,120]
[343985419,1733169609369,-500.0,0.00025821,120]
[343985420,1733169609423,-544.54,0.00025821,120]
[343985421,1733169609477,-500.0,0.00025821,120]
[343985422,1733169609532,-3075.15,0.00025821,120]
[343985423,1733169609583,-500.0,0.00025821,120]
[343985424,1733169609636,-500.0,0.00025821,120]
[343985425,1733169609689,-2991.85,0.00025821,120]
[343985426,1733169609740,-500.0,0.00025821,120]
[343985427,1733169609791,-3418.87,0.00025821,120]
[343985428,1733169609843,-1092.9,0.00025821,120]
[343985429,1733169609893,-571.61,0.00025821,120]
[343985430,1733169609944,-500.0,0.00025821,120]
[343985431,1733169609993,-811.66,0.00025821,120]
[343985432,1733169610042,-2196.28,0.00025821,120]
[343985433,1733169610091,-5734.44,0.00025821,120]
[343985434,1733169610138,-500.0,0.00025821,120]
[343985435,1733169610192,-2473.71,0.00025821,120]
[343985436,1733169610241,-500.0,0.00025821,120]
[343985437,1733169610292,-500.0,0.00025821,120]
[343985438,1733169610343,-1131.45,0.00025821,120]
[343985439,1733169610393,-500.0,0.00025821,120]
[343985440,1733169610442,-3287.72,0.00025821,120]
[343985441,1733169610489,-684.17,0.00025821,120]
[343985442,1733169610539,-5388.18,0.00025821,120]
[343985443,1733169610589,-500.0,0.00025821,120]
[343985444,1733169610638,-3026.65,0.00025821,120]
[343985445,1733169610693,-500.0,0.00025821,120]
[343985446,1733169610754,-500.0,0.00025821,120]
[343985447,1733169610806,-663.27,0.00025821,120]
[343985448,1733169610856,-2668.13,0.00025821,120]
[343985449,1733169610907,-500.0,0.00025821,120]
[343985450,1733169610954,-535.28,0.00025821,120]
[343985451,1733169611000,-1670.84,0.00025821,120]
[343985452,1733169611045,-500.0,0.00025821,120]
[343985453,1733169611090,-895.09,0.00025821,120]
[343985454,1733169611135,-500.0,0.00025821,120]
[343985455,1733169611179,-1975.86,0.00025821,120]
[343985456,1733169611232,-2661.94,0.00025821,120]
[343985457,1733169611280,-500.0,0.00025821,120]
[343985458,1733169611326,-500.0,0.00025821,120]
[343985459,1733169611373,-3529.09,0.00025821,120]
[343985460,1733169611421,-5200.25,0.00025821,120]
[343985461,1733169611471,-3213.63,0.00025821,120]
[343985462,1733169611516,-978.51,0.00025821,120]
[343985463,1733169611568,-1404.4,0.00025821,120]
[343985464,1733169611615,-2688.97,0.00025821,120]
[343985465,1733169611662,-4908.38,0.00025821,120]
[343985466,1733169611710,-3927.33,0.00025821,120]
[343985467,1733169611758,-4766.8,0.00025821,120]
[343985468,1733169611804,-5216.64,0.00025821,120]
[343985469,1733169611849,-500.0,0.00025821,120]
[343985470,1733169611894,-1607.08,0.00025821,120]
[343985471,1733169611942,-500.0,0.00025821,120]
[343985472,1733169611987,-3025.07,0.00025821,120]
[343985473,1733169612032,-592.09971286,0.00025821,120]
[343985474,1733169612077,-500.0,0.00025821,120]
[343985475,1733169612122,-2839.58,0.00025821,120]
[343985476,1733169612167,-841.46,0.00025821,120]
[343985477,1733169612213,-500.0,0.00025821,120]
[343985478,1733169612266,-2729.59,0.00025821,120]
[343985479,1733169612311,-2073.17,0.00025821,120]
[343985480,1733169612360,-500.0,0.00025821,120]
[343985481,1733169612409,-2877.76,0.00025821,120]
[343985482,1733169612459,-6177.84,0.00025821,120]
[343985483,1733169612509,-5465.18,0.00025821,120]
[343985484,1733169612562,-1140.61,0.00025821,120]
[343985485,1733169612614,-682.14,0.00025821,120]
[343985486,1733169612664,-729.35,0.00025821,120]
[343985487,1733169612713,-7107.57,0.00025821,120]
[343985488,1733169612761,-500.0,0.00025821,120]
[343985489,1733169612809,-522.94,0.00025821,120]
[343985490,1733169612858,-4766.13,0.00025821,120]
[343985491,1733169612905,-500.0,0.00025821,120]
[343985492,1733169612951,-823.11,0.00025821,120]
[343985493,1733169612998,-31749.53,0.00025821,120]
[343985494,1733169613045,-3729.24,0.00025821,120]
[343985495,1733169613092,-1786.36,0.00025821,120]
[343985496,1733169613448,-3498.94,0.00025821,120]
[343985497,1733169613494,-500.0,0.00025821,30]
[343985498,1733169613541,-500.0,0.00025821,120]
[343985499,1733169613590,-2298.11,0.00025821,120]
[343985500,1733169613638,-5593.29,0.00025821,120]
[343985501,1733169613685,-1433.32,0.00025821,120]
[343985502,1733169613738,-500.0,0.00025821,120]
[343985503,1733169613783,-500.0,0.00025821,120]
[343985504,1733169613828,-1432.32,0.00025821,120]
[343985505,1733169613873,-1134.59,0.00025821,120]
[343985506,1733169613916,-718.76,0.00025821,120]
[343985507,1733169613964,-2915.48,0.00025821,120]
[343985508,1733169614014,-1883.27,0.00025821,120]
[343985509,1733169614062,-500.0,0.00025821,120]
[343985510,1733169614110,-2649.7,0.00025821,120]
[343985511,1733169614158,-500.0,0.00025821,120]
[343985512,1733169614208,-3487.24,0.00025821,120]
[343985513,1733169614258,-20797.64,0.00025821,120]
[343985514,1733169614307,-500.0,0.00025821,120]
[343985515,1733169614357,-2924.44,0.00025821,120]
[343985516,1733169614407,-2057.6,0.00025821,120]
[343985517,1733169614463,-5509.29,0.00025821,120]
[343985518,1733169614512,-500.0,0.00025821,120]
[343985519,1733169614561,-500.0,0.00025821,120]
[343985520,1733169614612,-4788.27,0.00025821,120]
[343985521,1733169614663,-6930.13,0.00025821,120]
[343985522,1733169614711,-500.0,0.00025821,120]
[343985523,1733169614758,-7028.86,0.00025821,120]
[343985524,1733169614806,-1803.13,0.00025821,120]
[343985525,1733169614853,-500.0,0.00025821,120]
[343985526,1733169614903,-3102.05,0.00025821,120]
[343985527,1733169614952,-5759.46,0.00025821,120]
[343985528,1733169615000,-500.0,0.00025821,120]
[343985529,1733169615048,-500.0,0.00025821,120]
[343985530,1733169615096,-715.31,0.00025821,120]
[343985531,1733169615144,-1541.69,0.00025821,120]
[343985532,1733169615195,-500.0,0.00025821,120]
[343985533,1733169615244,-500.0,0.00025821,120]
[343985534,1733169615293,-7787.8,0.00025821,120]
[343985535,1733169615341,-903.21,0.00025821,120]
[343985536,1733169615392,-5512.62,0.00025821,120]
[343985537,1733169615444,-731.68,0.00025821,120]
[343985538,1733169615493,-500.0,0.00025821,120]
[343985539,1733169615544,-1079.25,0.00025821,120]
[343985540,1733169615597,-500.0,0.00025821,120]
[343985541,1733169615649,-500.0,0.00025821,120]
[343985542,1733169615698,-1049.47,0.00025821,120]
[343985543,1733169615746,-806.28,0.00025821,120]
[343985544,1733169615795,-17092.48,0.00025821,120]
[343985545,1733169615844,-500.0,0.00025821,120]
[343985546,1733169615894,-1062.78,0.00025821,120]
[343985547,1733169615944,-500.0,0.00025821,120]
[343985548,1733169615994,-3848.05,0.00025821,120]
[343985549,1733169616044,-580.18,0.00025821,120]
[343985550,1733169616094,-2528.15,0.00025821,120]
[343985551,1733169616143,-500.0,0.00025821,120]
[343985552,1733169616197,-529.81,0.00025821,120]
[343985553,1733169616246,-500.0,0.00025821,120]
[343985554,1733169616296,-5322.29,0.00025821,120]
[343985555,1733169616348,-1613.46,0.00025821,120]
[343985556,1733169616399,-2816.16,0.00025821,120]
[343985557,1733169616450,-663.6,0.00025821,120]
[343985558,1733169616502,-500.0,0.00025821,120]
[343985559,1733169616554,-880.7,0.00025821,120]
[343985560,1733169616606,-4195.25,0.00025821,120]
[343985561,1733169616658,-6844.27,0.00025821,120]
[343985562,1733169616708,-500.0,0.00025821,120]
[343985563,1733169616759,-1117.94,0.00025821,120]
[343985564,1733169616809,-500.0,0.00025821,120]
[343985565,1733169616859,-8824.85,0.00025821,120]
[343985566,1733169616911,-4791.52,0.00025821,120]
[343985567,1733169616963,-2596.48,0.00025821,120]
[343985568,1733169617013,-500.0,0.00025821,120]
[343985569,1733169617061,-500.0,0.00025821,120]
[343985570,1733169617109,-3760.91,0.00025821,120]
[343985571,1733169617158,-683.6,0.00025821,120]
[343985572,1733169617206,-3052.97,0.00025821,120]
[343985573,1733169617256,-2061.14,0.00025821,30]
[343985574,1733169617309,-500.0,0.00025821,120]
[343985575,1733169617359,-1353.46,0.00025821,120]
[343985576,1733169617411,-3811.16,0.00025821,120]
[343985577,1733169617462,-584.0,0.00025821,120]
[343985578,1733169617515,-1668.31,0.00025821,120]
[343985579,1733169617569,-721.18,0.00025821,120]
[343985580,1733169617619,-2178.58,0.00025821,120]
[343985581,1733169617671,-500.0,0.00025821,120]
[343985582,1733169617729,-500.0,0.00025821,120]
[343985583,1733169617789,-26439.53,0.00025821,120]
[343985584,1733169617847,-13422.03,0.00025821,120]
[343985585,1733169617899,-500.0,0.00025821,120]
[343985586,1733169617946,-500.0,0.00025821,120]
[343985587,1733169617995,-500.0,0.00025821,120]
[343985588,1733169618046,-2055.7,0.00025821,120]
[343985589,1733169618096,-6506.01,0.00025821,120]
[343985590,1733169618475,-17851.52,0.00025821,120]
[343985591,1733169618531,-500.0,0.00025821,120]
[343985592,1733169618585,-1160.38,0.00025821,120]
[343985593,1733169618635,-4324.49,0.00025821,120]
[343985594,1733169618683,-500.0,0.00025821,120]
[343985595,1733169618736,-500.0,0.00025821,120]
[343985596,1733169618783,-3213.25,0.00025821,120]
[343985597,1733169618834,-500.0,0.00025821,120]
[343985598,1733169618886,-559.05,0.00025821,120]
[343985599,1733169618938,-907.5,0.00025821,120]
[343985600,1733169618989,-3373.11,0.00025821,120]
[343985601,1733169619037,-587.12,0.00025821,120]
[343985602,1733169619086,-658.13,0.00025821,120]
[343985603,1733169619134,-500.0,0.00025821,120]
[343985604,1733169619182,-797.38,0.00025821,120]
[343985605,1733169619233,-518.27,0.00025821,120]
[343985606,1733169619282,-651.08,0.00025821,120]
[343985607,1733169619330,-2812.6,0.00025821,120]
[343985608,1733169619380,-7147.22,0.00025821,120]
[343985609,1733169619431,-2921.9,0.00025821,120]
[343985610,1733169619484,-1551.24,0.00025821,120]
[343985611,1733169619533,-500.0,0.00025821,120]
[343985612,1733169619582,-500.0,0.00025821,120]
[343985613,1733169619629,-622.04,0.00025821,120]
[343985614,1733169619678,-1568.244749,0.00025821,120]
[343985615,1733169619730,-570.25,0.00025821,120]
[343985616,1733169619777,-1134.58,0.00025821,120]
[343985617,1733169619821,-8995.35,0.00025821,120]
[343985618,1733169619867,-2673.72,0.00025821,120]
[343985619,1733169619912,-500.0,0.00025821,120]
[343985620,1733169619957,-1345.84,0.00025821,120]
[343985621,1733169620001,-500.0,0.00025821,120]
[343985622,1733169620045,-723.17,0.00025821,120]
[343985623,1733169620089,-500.0,0.00025821,120]
[343985624,1733169620133,-1392.8,0.00025821,120]
[343985625,1733169620176,-703.37,0.00025821,120]
[343985626,1733169620222,-500.0,0.00025821,120]
[343985627,1733169620266,-2108.47,0.00025821,120]
[343985628,1733169620308,-500.0,0.00025821,120]
[343985629,1733169620352,-755.13,0.00025821,120]
[343985630,1733169620395,-500.0,0.00025821,120]
[343985631,1733169620442,-1785.16,0.00025821,120]
[343985632,1733169620488,-672.83,0.00025821,120]
[343985633,1733169620533,-935.66,0.00025821,120]
[343985634,1733169620580,-3035.15,0.00025821,120]
[343985635,1733169620627,-632.7,0.00025821,120]
[343985636,1733169620674,-500.0,0.00025821,120]
[343985637,1733169620723,-2072.12,0.00025821,120]
[343985638,1733169620769,-5565.53,0.00025821,120]
[343985639,1733169620814,-2151.79,0.00025821,120]
[343985640,1733169620859,-671.1,0.00025821,120]
[343985641,1733169620904,-1217.44,0.00025821,60]
[343985642,1733169620949,-4694.36,0.00025821,120]
[343985643,1733169620994,-2095.21,0.00025821,120]
[343985644,1733169621039,-2095.96,0.00025821,120]
[343985645,1733169621085,-500.0,0.00025821,120]
[343985646,1733169621131,-2737.11,0.00025821,120]
[343985647,1733169621176,-500.0,0.00025821,120]
[343985648,1733169621223,-2399.96,0.00025821,120]
[343985649,1733169621268,-1205.02,0.00025821,120]
[343985650,1733169621312,-731.09,0.00025821,120]
[343985651,1733169621359,-517.92,0.00025821,120]
[343985652,1733169621405,-500.0,0.00025821,120]
[343985653,1733169621453,-500.0,0.00025821,120]
[343985654,1733169621501,-957.59,0.00025821,120]
[343985655,1733169621551,-500.0,0.00025821,120]
[343985656,1733169621610,-500.0,0.00025821,120]
[343985657,1733169621660,-964.02,0.00025821,120]
[343985658,1733169621707,-5642.52,0.00025821,120]
[343985659,1733169621752,-1155.0,0.00025821,120]
[343985660,1733169621798,-1599.85,0.00025821,120]
[343985661,1733169621844,-500.0,0.00025821,120]
[343985662,1733169621890,-12639.89,0.00025821,120]
[343985663,1733169621938,-3145.91,0.00025821,120]
[343985664,1733169621983,-4747.76,0.00025821,120]
[343985665,1733169622031,-2445.76,0.00025821,120]
[343985666,1733169622077,-976.95,0.00025821,120]
[343985667,1733169622124,-500.0,0.00025821,120]
[343985668,1733169622171,-500.0,0.00025821,120]
[343985669,1733169622217,-500.0,0.00025821,120]
[343985670,1733169622263,-3585.22,0.00025821,120]
[343985671,1733169622308,-966.75,0.00025821,120]
[343985672,1733169622355,-3095.03,0.00025821,120]
[343985673,1733169622401,-1566.82,0.00025821,120]
[343985674,1733169622449,-8533.54,0.00025821,120]
[343985675,1733169622495,-469.57747071,0.00025821,120]
[343985676,1733169622542,-2038.8,0.00025821,120]
[343985677,1733169622591,-3060.79,0.00025821,120]
[343985678,1733169622638,-3532.86,0.00025821,120]
[343985679,1733169622685,-2087.33,0.00025821,120]
[343985680,1733169622736,-21068.21,0.00025821,120]
[343985681,1733169622783,-3138.93,0.00025821,120]
[343985682,1733169622830,-4394.15,0.00025821,120]
[343985683,1733169622877,-299.82155747,0.00025821,120]
[343985684,1733169623266,-1858.53,0.00025821,120]
[343985685,1733169623315,-500.0,0.00025821,120]
[343985686,1733169623366,-1419.7,0.00025821,120]
[343985687,1733169623415,-1050.27,0.00025821,120]
[343985688,1733169623462,-704.36,0.00025821,120]
[343985689,1733169623512,-5863.27,0.00025821,120]
[343985690,1733169623566,-500.0,0.00025821,120]
[343985691,1733169623618,-1155.5,0.00025821,120]
[343985692,1733169623667,-1383.07,0.00025821,120]
[343985693,1733169623716,-2485.86,0.00025821,120]
[343985694,1733169623764,-3307.46,0.00025821,120]
[343985695,1733169623811,-500.0,0.00025821,120]
[343985696,1733169623857,-619.4,0.00025821,120]
[343985697,1733169623905,-9569.74,0.00025821,120]
[343985698,1733169623953,-2954.23,0.00025821,120]
[343985699,1733169624000,-500.0,0.00025821,120]
[343985700,1733169624048,-500.0,0.00025821,120]
[343985701,1733169624096,-3344.79,0.00025821,120]
[343985702,1733169624143,-1622.42,0.00025821,120]
[343985703,1733169624193,-414.1656377,0.00025821,120]
[343985704,1733169624241,-5312.46,0.00025821,120]
[343985705,1733169624289,-3039.49,0.00025821,120]
[343985706,1733169624340,-1433.94,0.00025821,120]
[343985707,1733169624390,-1486.96,0.00025821,120]
[343985708,1733169624443,-9703.4,0.00025821,120]
[343985709,1733169624490,-500.0,0.00025821,120]
[343985710,1733169624539,-5702.56,0.00025821,120]
[343985711,1733169624593,-500.0,0.00025821,120]
[343985712,1733169624644,-553.01,0.00025821,120]
[343985713,1733169624697,-500.0,0.00025821,120]
[343985714,1733169624744,-6176.14,0.00025821,120]
[343985715,1733169624790,-617.67,0.00025821,120]
[343985716,1733169624837,-2712.05,0.00025821,120]
[343985717,1733169624884,-500.0,0.00025821,120]
[343985718,1733169624932,-4667.69,0.00025821,120]
[343985719,1733169624981,-500.0,0.00025821,120]
[343985720,1733169625028,-909.9,0.00025821,120]
[343985721,1733169625074,-2769.56,0.00025821,120]
[343985722,1733169625122,-2398.74,0.00025821,120]
[343985723,1733169625171,-1527.45,0.00025821,120]
[343985724,1733169625220,-500.0,0.00025821,120]
[343985725,1733169625271,-517.74134824,0.00025821,120]
[343985726,1733169625319,-500.0,0.00025821,120]
[343985727,1733169625368,-2607.43,0.00025821,120]
[343985728,1733169625417,-1429.2,0.00025821,120]
[343985729,1733169625465,-500.0,0.00025821,120]
[343985730,1733169625512,-500.0,0.00025821,120]
[343985731,1733169625562,-500.0,0.00025821,120]
[343985732,1733169625614,-1289.36,0.00025821,120]
[343985733,1733169625663,-1181.82,0.00025821,120]
[343985734,1733169625712,-2609.47,0.00025821,120]
[343985735,1733169625759,-860.45,0.00025821,120]
[343985736,1733169625807,-847.91,0.00025821,120]
[343985737,1733169625854,-500.0,0.00025821,120]
[343985738,1733169625902,-306.88,0.00025821,120]
[343985739,1733169625956,-1577.07,0.00025821,120]
[343985740,1733169626005,-500.0,0.00025821,120]
[343985741,1733169626056,-500.0,0.00025821,120]
[343985742,1733169626114,-4325.33,0.00025821,120]
[343985743,1733169626170,-1229.5,0.00025821,120]
[343985744,1733169626227,-1146.75,0.00025821,120]
[343985745,1733169626276,-870.78,0.00025821,120]
[343985746,1733169626324,-4779.25,0.00025821,120]
[343985747,1733169626372,-2309.42,0.00025821,120]
[343985748,1733169626419,-500.0,0.00025821,120]
[343985749,1733169626467,-5287.35,0.00025821,120]
[343985750,1733169626515,-500.0,0.00025821,120]
[343985751,1733169626568,-6116.17,0.00025821,120]
[343985752,1733169626616,-793.22,0.00025821,120]
[343985753,1733169626664,-2762.05,0.00025821,120]
[343985754,1733169626713,-500.0,0.00025821,120]
[343985755,1733169626759,-4955.63,0.00025821,120]
[343985756,1733169626807,-1836.1,0.00025821,120]
[343985757,1733169626861,-500.0,0.00025821,120]
[343985758,1733169626910,-500.0,0.00025821,120]
[343985759,1733169626959,-1023.67,0.00025821,120]
[343985760,1733169627009,-6294.22,0.00025821,120]
[343985761,1733169627059,-500.0,0.00025821,120]
[343985762,1733169627108,-1361.04,0.00025821,120]
[343985763,1733169627159,-2550.03,0.00025821,120]
[343985764,1733169627208,-1153.56,0.00025821,120]
[343985765,1733169627258,-500.0,0.00025821,120]
[343985766,1733169627308,-500.0,0.00025821,120]
[343985767,1733169627357,-1907.13,0.00025821,120]
[343985768,1733169627405,-514.18,0.00025821,120]
[343985769,1733169627458,-500.0,0.00025821,120]
[343985770,1733169627520,-3535.47,0.00025821,120]
[343985771,1733169627571,-500.0,0.00025821,120]
[343985772,1733169627623,-1417.54,0.00025821,120]
[343985773,1733169627672,-500.0,0.00025821,120]
[343985774,1733169627729,-549.1,0.00025821,120]
[343985775,1733169627778,-500.0,0.00025821,120]
[343985776,1733169627827,-4776.42,0.00025821,120]
[343985777,1733169627877,-1487.64,0.00025821,120]
[343985778,1733169628268,-500.0,0.00025821,120]
[343985779,1733169628319,-2470.15,0.00025821,120]
[343985780,1733169628368,-795.36,0.00025821,120]
[343985781,1733169628417,-500.0,0.00025821,120]
[343985782,1733169628467,-890.83,0.00025821,120]
[343985783,1733169628518,-500.0,0.00025821,120]
[343985784,1733169628569,-2939.67,0.00025821,120]
[343985785,1733169628620,-500.0,0.00025821,120]
[343985786,1733169628672,-2411.07,0.00025821,120]
[343985787,1733169628724,-5621.83,0.00025821,120]
[343985788,1733169628774,-991.41,0.00025821,120]
[343985789,1733169628828,-1874.45,0.00025821,120]
[343985790,1733169628876,-1305.92,0.00025821,120]
[343985791,1733169628926,-931.33,0.00025821,120]
[343985792,1733169628977,-1065.56,0.00025821,120]
[343985793,1733169629025,-203.16,0.00025821,120]
[343985794,1733169629075,-500.0,0.00025821,120]
[343985795,1733169629123,-2705.16,0.00025821,120]
[343985796,1733169629169,-500.0,0.00025821,120]
[343985797,1733169629215,-500.0,0.00025821,120]
[343985798,1733169629266,-3526.57,0.00025821,120]
[343985799,1733169629313,-1775.35,0.00025821,120]
[343985800,1733169629360,-500.0,0.00025847,120]
[343985801,1733169629407,-420.35115058,0.00025916,30]
[343985802,1733169629457,-2000.0,0.00025971,120]
[343985803,1733169629503,-500.0,0.00025971,120]
[343985804,1733169629551,-2492.48,0.00026027,120]
[343985805,1733169629606,-2492.48,0.00026027,120]
[343985806,1733169629654,-2492.48,0.00026027,120]
[343985807,1733169629704,-2492.48,0.00026027,120]
[343985808,1733169629752,-358.503438,0.00026095,120]
[343985809,1733169629797,-252.726554,0.00026095,120]
[343985810,1733169629843,-4011.101255,0.00026095,120]
[343985811,1733169629888,-249.71060853,0.00026095,120]
[343985812,1733169629935,-500.0,0.00026095,120]
[343985813,1733169629984,-500.0,0.00026095,120]
[343985814,1733169630032,-500.0,0.00026095,120]
[343985815,1733169630078,-642.86,0.00026095,120]
[343985816,1733169630124,-500.0,0.00026095,120]
[343985817,1733169630172,-756.76,0.00026095,120]
[343985818,1733169630218,-500.0,0.00026095,120]
[343985819,1733169630267,-1594.55,0.00026095,120]
[343985820,1733169630313,-500.0,0.00026095,120]
[343985821,1733169630361,-500.0,0.00026095,120]
[343985822,1733169630407,-1852.82,0.00026095,120]
[343985823,1733169630451,-500.0,0.00026095,120]
[343985824,1733169630497,-500.0,0.00026095,120]
[343985825,1733169630544,-1847.31,0.00026095,120]
[343985826,1733169630591,-500.0,0.00026095,120]
[343985827,1733169630637,-500.0,0.00026095,120]
[343985828,1733169630682,-1530.34,0.00026095,120]
[343985829,1733169630732,-500.0,0.00026095,120]
[343985830,1733169630780,-624.19,0.00026095,120]
[343985831,1733169630825,-500.0,0.00026095,120]
[343985832,1733169630870,-3500.48,0.00026095,120]
[343985833,1733169630915,-500.0,0.00026095,120]
[343985834,1733169630961,-852.71,0.00026095,120]
[343985835,1733169631007,-809.81,0.00026095,120]
[343985836,1733169631053,-500.0,0.00026095,120]
[343985837,1733169631100,-606.0,0.00026095,120]
[343985838,1733169631145,-500.0,0.00026095,120]
[343985839,1733169631191,-1384.64,0.00026095,120]
[343985840,1733169631243,-500.0,0.00026095,120]
[343985841,1733169631290,-500.0,0.00026095,120]
[343985842,1733169631339,-620.9,0.00026095,120]
[343985843,1733169631391,-500.0,0.00026095,120]
[343985844,1733169631440,-500.0,0.00026095,120]
[343985845,1733169631494,-1176.96,0.00026095,120]
[343985846,1733169631545,-500.0,0.00026095,120]
[343985847,1733169631599,-500.0,0.00026095,120]
[343985848,1733169631649,-548.70115393,0.00026095,120]
[343985849,1733169631698,-2497.51,0.00026095,120]
[343985850,1733169631748,-500.0,0.00026095,120]
[343985851,1733169631796,-500.0,0.00026095,120]
[343985852,1733169631843,-500.0,0.00026095,120]
[343985853,1733169631893,-702.37,0.00026095,120]
[343985854,1733169631941,-2647.58,0.00026095,120]
[343985855,1733169631994,-1509.57,0.00026095,120]
[343985856,1733169632044,-470.49939688,0.00026095,120]
[343985857,1733169632092,-500.0,0.00026095,120]
[343985858,1733169632143,-645.81,0.00026095,120]
[343985859,1733169632196,-500.0,0.00026095,120]
[343985860,1733169632247,-577.19,0.00026095,120]
[343985861,1733169632295,-500.0,0.00026095,120]
[343985862,1733169632343,-1201.64,0.00026095,120]
[343985863,1733169632394,-500.0,0.00026095,120]
[343985864,1733169632442,-500.0,0.00026095,120]
[343985865,1733169632496,-781.21,0.00026095,120]
[343985866,1733169632545,-500.0,0.00026095,120]
[343985867,1733169632595,-714.59,0.00026095,120]
[343985868,1733169632646,-500.0,0.00026095,120]
[343985869,1733169632698,-1057.51,0.00026095,120]
[343985870,1733169632746,-500.0,0.00026095,120]
[343985871,1733169632795,-1496.66,0.00026095,120]
[343985872,1733169633054,-500.0,0.00026095,120]
[343985873,1733169633145,-670.33,0.00026095,120]
[343985874,1733169633199,-500.0,0.00026095,120]
[343985875,1733169633250,-500.0,0.00026095,120]
[343985876,1733169633300,-500.0,0.00026095,120]
[343985877,1733169633351,-500.0,0.00026095,120]
[343985878,1733169633402,-1136.16,0.00026095,120]
[343985879,1733169633454,-500.0,0.00026095,120]
[343985880,1733169633506,-500.0,0.00026095,120]
[343985881,1733169633559,-500.0,0.00026095,120]
[343985882,1733169633615,-1933.78,0.00026095,120]
[343985883,1733169633670,-483.43,0.00026095,120]
[343985884,1733169633723,-256.34448246,0.00026095,120]
[343985885,1733169633775,-1205.65,0.00026095,120]
[343985886,1733169633826,-500.0,0.00026095,120]